fUST/lending_fUST_20240613
["ID","MTS","AMOUNT","RATE_DAILY","PERIOD"]
[329275575,1718209855673,-1020.82,0.00016712,2]
[329275577,1718209855684,-5381.63,0.00016712,2]
[329275579,1718209855696,-2000.0,0.00016884,2]
[329275580,1718209855707,-500.0,0.00016982,2]
[329275581,1718209855718,-500.0,0.00016983,2]
[329275582,1718209855729,-500.0,0.00016983,2]
[329275583,1718209855741,-503.67876938,0.00016983,2]
[329275584,1718209855752,-500.0,0.00016983,2]
[329275585,1718209855763,-500.0,0.00016983,2]
[329275586,1718209855773,-500.0,0.00016983,2]
[329275587,1718209855783,-500.0,0.00016983,2]
[329275588,1718209855794,-500.0,0.00016983,2]
[329275589,1718209855805,-500.0,0.00016983,2]
[329275590,1718209855816,-500.0,0.00016983,2]
[329275591,1718209855826,-500.0,0.00016983,2]
[329275592,1718209855836,-500.0,0.00016983,2]
[329275593,1718209855847,-500.0,0.00016983,2]
[329275594,1718209855860,-500.0,0.00016983,2]
[329275595,1718209855871,-500.0,0.00016983,2]
[329275596,1718209855881,-500.0,0.00016983,2]
[329275597,1718209855892,-500.0,0.00016983,2]
[329275598,1718209855903,-500.0,0.00016983,2]
[329275599,1718209855914,-500.0,0.00016983,2]
[329275600,1718209855926,-250.0,0.00016983,2]
[329275601,1718209855936,-500.0,0.00016983,4]
[329275602,1718209855948,-500.0,0.00016983,2]
[329275603,1718209855958,-500.0,0.00016983,2]
[329275604,1718209855969,-503.39915285,0.00016983,2]
[329275605,1718209855980,-500.0,0.00016983,2]
[329275606,1718209855991,-500.0,0.00016983,2]
[329275607,1718209856002,-500.0,0.00016983,2]
[329275608,1718209856013,-500.0,0.00016983,2]
[329275609,1718209856025,-500.0,0.00016983,2]
[329275610,1718209856036,-500.0,0.00016983,2]
[329275611,1718209856048,-500.0,0.00016983,2]
[329275612,1718209856063,-500.0,0.00016984,2]
[329275613,1718209856075,-500.0,0.00016984,2]
[329275614,1718209856085,-165.04,0.00016984,2]
[329275615,1718209856097,-500.0,0.00016984,2]
[329275616,1718209856126,-644.45,0.00016984,2]
[329275617,1718209856138,-500.0,0.00016984,2]
[329275618,1718209856150,-500.0,0.00016985,2]
[329275619,1718209856162,-500.0,0.00016986,2]
[329275620,1718209856173,-500.0,0.00016986,2]
[329275621,1718209856184,-638.9216037,0.00016986,2]
[329275622,1718209856194,-500.0,0.00016986,2]
[329275623,1718209856205,-500.0,0.00016986,2]
[329275624,1718209856215,-500.0,0.00016986,2]
[329275625,1718209856226,-639.73,0.00016986,2]
[329275626,1718209856236,-500.0,0.00016986,2]
[329275627,1718209856248,-500.0,0.00016986,2]
[329275628,1718209856258,-759.14,0.00016986,2]
[329275629,1718209856268,-500.0,0.00016986,2]
[329275630,1718209856279,-500.0,0.00016986,2]
[329275631,1718209856290,-500.0,0.00016986,2]
[329275632,1718209856300,-500.0,0.00016986,2]
[329275633,1718209856311,-702.74,0.00016986,2]
[329275634,1718209856322,-2098.87,0.00016986,2]
[329275635,1718209856333,-1082.56,0.00016986,2]
[329275636,1718209856343,-652.32,0.00016986,2]
[329275637,1718209856354,-742.19,0.00016986,2]
[329275638,1718209856364,-500.0,0.00016986,2]
[329275639,1718209856375,-500.0,0.00016986,2]
[329275640,1718209856386,-500.0,0.00016986,2]
[329275641,1718209856396,-500.0,0.00016986,2]
[329275642,1718209856407,-500.0,0.00016986,2]
[329275643,1718209856418,-500.0,0.00016986,2]
[329275644,1718209856428,-4130.68,0.00016986,2]
[329275645,1718209856439,-9258.45,0.00016986,2]
[329275646,1718209856450,-1586.88,0.00016986,2]
[329275647,1718209856460,-3156.51,0.00016986,2]
[329275648,1718209856471,-436.99501858,0.00016986,2]
[329275649,1718209856481,-500.0,0.00016986,2]
[329275650,1718209856492,-651.71,0.00016986,2]
[329275651,1718209856502,-7318.37,0.00016986,2]
[329275652,1718209856512,-500.0,0.00016986,2]
[329275653,1718209856522,-500.0,0.00016986,2]
[329275654,1718209856533,-500.0,0.00016986,2]
[329275655,1718209856543,-643.06,0.00016986,2]
[329275656,1718209856553,-910.12,0.00016986,2]
[329275657,1718209856565,-500.0,0.00016986,2]
[329275658,1718209856575,-598.38989292,0.00016986,2]
[329275659,1718209856585,-1682.09,0.00016986,2]
[329275660,1718209856595,-500.0,0.00016986,2]
[329275661,1718209856607,-281.0125794,0.00016986,2]
[329275662,1718209856618,-1161.33,0.00016986,2]
[329275663,1718209856628,-500.0,0.00016986,2]
[329275664,1718209856639,-500.0,0.00016986,2]
[329275665,1718209856650,-523.29,0.00016986,2]
[329275666,1718209856660,-744.84,0.00016986,2]
[329275667,1718209856671,-500.0,0.00016986,2]
[329275668,1718209856682,-3003.03,0.00016986,2]
[329275669,1718209856692,-1020.82,0.00016986,2]
[329275670,1718209856703,-424.11990841,0.00017089,2]
[329275671,1718209856713,-500.0,0.00017256,2]
[329275672,1718209856723,-500.0,0.00017257,2]
[329275673,1718209856734,-500.0,0.00017257,2]
[329275674,1718209856744,-500.0,0.00017257,2]
[329275675,1718209856755,-647.95,0.00017257,2]
[329275676,1718209856765,-500.0,0.00017257,2]
[329275677,1718209856776,-250.0,0.00017257,2]
[329275678,1718209856788,-500.0,0.00017257,4]
[329275679,1718209856799,-503.42106394,0.00017257,2]
[329275680,1718209856811,-500.0,0.00017257,2]
[329275681,1718209856827,-500.0,0.00017257,2]
[329275682,1718209856838,-500.0,0.00017257,2]
[329275683,1718209856849,-500.0,0.00017257,2]
[329275684,1718209856863,-500.0,0.00017258,2]
[329275685,1718209856875,-353.17325314,0.00017258,2]
[329275686,1718209856886,-500.0,0.00017258,2]
[329275687,1718209856897,-644.45,0.00017258,2]
[329275688,1718209856908,-500.0,0.00017258,2]
[329275689,1718209856919,-601.65,0.00017259,2]
[329275690,1718209856930,-500.0,0.0001726,2]
[329275691,1718209856940,-500.0,0.0001726,2]
[329275692,1718209856951,-500.0,0.0001726,2]
[329275693,1718209856961,-500.0,0.0001726,2]
[329275694,1718209856972,-639.73,0.0001726,2]
[329275695,1718209856982,-500.0,0.0001726,2]
[329275696,1718209856993,-759.14,0.0001726,2]
[329275697,1718209857003,-461.18556245,0.0001726,2]
[329275698,1718209857013,-500.0,0.0001726,2]
[329275699,1718209857024,-500.0,0.0001726,2]
[329275700,1718209857034,-500.0,0.0001726,2]
[329275701,1718209857045,-702.74,0.0001726,2]
[329275702,1718209857059,-2098.87,0.0001726,2]
[329275703,1718209857071,-1082.56,0.0001726,2]
[329275704,1718209857081,-652.32,0.0001726,2]
[329275705,1718209857092,-742.19,0.0001726,2]
[329275706,1718209857121,-500.0,0.0001726,2]
[329275707,1718209857135,-500.0,0.0001726,2]
[329275708,1718209857147,-500.0,0.0001726,2]
[329275709,1718209857159,-500.0,0.0001726,2]
[329275710,1718209857169,-500.0,0.0001726,2]
[329275711,1718209857180,-500.0,0.0001726,2]
[329275712,1718209857191,-4130.68,0.0001726,2]
[329275713,1718209857202,-9258.45,0.0001726,2]
[329275714,1718209857212,-1586.88,0.0001726,2]
[329275715,1718209857224,-3156.51,0.0001726,2]
[329275716,1718209857234,-500.0,0.0001726,2]
[329275717,1718209857245,-651.71,0.0001726,2]
[329275718,1718209857256,-7318.37,0.0001726,2]
[329275719,1718209857267,-500.0,0.0001726,2]
[329275720,1718209857278,-500.0,0.0001726,2]
[329275721,1718209857289,-500.0,0.0001726,2]
[329275722,1718209857300,-643.06,0.0001726,2]
[329275723,1718209857311,-910.12,0.0001726,2]
[329275724,1718209857321,-500.0,0.0001726,2]
[329275725,1718209857333,-1682.09,0.0001726,2]
[329275726,1718209857345,-500.0,0.0001726,2]
[329275727,1718209857358,-1161.33,0.0001726,2]
[329275728,1718209857371,-500.0,0.0001726,2]
[329275729,1718209857382,-500.0,0.0001726,2]
[329275730,1718209857393,-744.84,0.0001726,2]
[329275731,1718209857404,-500.0,0.0001726,2]
[329275732,1718209857417,-3003.03,0.0001726,2]
[329275733,1718209857428,-1020.82,0.0001726,2]
[329275734,1718209857440,-500.0,0.00017531,2]
[329275735,1718209857452,-500.0,0.00017531,2]
[329275736,1718209857465,-500.0,0.00017531,2]
[329275737,1718209857476,-250.0,0.00017531,2]
[329275738,1718209857487,-500.0,0.00017531,4]
[329275739,1718209857500,-500.0,0.00017531,2]
[329275740,1718209857512,-500.0,0.00017531,2]
[329275741,1718209857525,-500.0,0.00017531,2]
[329275742,1718209857536,-500.0,0.00017532,2]
[329275743,1718209857547,-644.45,0.00017532,2]
[329275744,1718209857559,-598.21922168,0.00017532,2]
[329275745,1718209857570,-500.0,0.00017534,2]
[329275746,1718209857583,-500.0,0.00017534,2]
[329275747,1718209857593,-500.0,0.00017534,2]
[329275748,1718209857605,-500.0,0.00017534,2]
[329275749,1718209857616,-639.73,0.00017534,2]
[329275750,1718209857627,-500.0,0.00017534,2]
[329275751,1718209857638,-759.14,0.00017534,2]
[329275752,1718209857649,-500.0,0.00017534,2]
[329275753,1718209857659,-500.0,0.00017534,2]
[329275754,1718209857669,-500.0,0.00017534,2]
[329275755,1718209857680,-702.74,0.00017534,2]
[329275756,1718209857691,-2098.87,0.00017534,2]
[329275757,1718209857702,-1082.56,0.00017534,2]
[329275758,1718209857712,-652.32,0.00017534,2]
[329275759,1718209857723,-742.19,0.00017534,2]
[329275760,1718209857734,-645.61,0.00017534,2]
[329275761,1718209857744,-500.0,0.00017534,2]
[329275762,1718209857754,-500.0,0.00017534,2]
[329275763,1718209857764,-500.0,0.00017534,2]
[329275764,1718209857774,-500.0,0.00017534,2]
[329275765,1718209857785,-500.0,0.00017534,2]
[329275766,1718209857795,-4130.68,0.00017534,2]
[329275767,1718209857806,-9258.45,0.00017534,2]
[329275768,1718209857817,-1586.88,0.00017534,2]
[329275769,1718209857829,-3156.51,0.00017534,2]
[329275770,1718209857841,-500.0,0.00017534,2]
[329275771,1718209857851,-651.71,0.00017534,2]
[329275772,1718209857863,-7318.37,0.00017534,2]
[329275773,1718209857873,-500.0,0.00017534,2]
[329275774,1718209857882,-500.0,0.00017534,2]
[329275775,1718209857892,-500.0,0.00017534,2]
[329275776,1718209857903,-643.06,0.00017534,2]
[329275777,1718209857915,-910.12,0.00017534,2]
[329275778,1718209857926,-500.0,0.00017534,2]
[329275779,1718209857937,-1682.09,0.00017534,2]
[329275780,1718209857948,-500.0,0.00017534,2]
[329275781,1718209857959,-1161.33,0.00017534,2]
[329275782,1718209857971,-500.0,0.00017534,2]
[329275783,1718209857982,-500.0,0.00017534,2]
[329275784,1718209857992,-744.84,0.00017534,2]
[329275785,1718209858005,-504.13967225,0.00017534,2]
[329275786,1718209858017,-3003.03,0.00017534,2]
[329275787,1718209858028,-1020.82,0.00017534,2]
[329275788,1718209858040,-424.11990841,0.0001757,2]
[329275789,1718209858053,-587.0,0.00017651,2]
[329275790,1718209858070,-681.3,0.00017731,2]
[329275791,1718209858085,-80723.63449196,0.00017803,2]
[329275792,1718209858099,-151.0,0.00017803,2]
[329275793,1718209858131,-300.0,0.00017803,2]
[329275794,1718209858149,-300.0,0.00017803,2]
[329275795,1718209858163,-151.0,0.00017803,2]
[329275796,1718209858177,-203.447223,0.00017803,2]
[329275797,1718209858190,-151.0,0.00017803,2]
[329275798,1718209858201,-203.447223,0.00017803,2]
[329275799,1718209858218,-151.0,0.00017803,2]
[329275800,1718209858229,-151.0,0.00017803,2]
[329275801,1718209858240,-151.0,0.00017803,2]
[329275802,1718209858251,-472.91102,0.00017803,2]
[329275803,1718209858265,-472.91102,0.00017803,2]
[329275804,1718209858277,-151.0,0.00017803,2]
[329275805,1718209858293,-289.646229,0.00017803,2]
[329275806,1718209858306,-500.0,0.00017805,2]
[329275807,1718209858319,-500.0,0.00017805,2]
[329275808,1718209858331,-499.00173962,0.00017805,2]
[329275809,1718209858347,-356.49112168,0.00017805,2]
[329275810,1718209858362,-500.0,0.00017805,4]
[329275811,1718209858374,-500.0,0.00017805,2]
[329275812,1718209858389,-500.0,0.00017805,2]
[329275813,1718209858400,-500.0,0.00017805,2]
[329275814,1718209858416,-500.0,0.00017806,2]
[329275815,1718209858430,-644.45,0.00017806,2]
[329275816,1718209858441,-500.0,0.00017808,2]
[329275817,1718209858452,-272.57315558,0.00017808,2]
[329275818,1718209858464,-500.0,0.00017808,2]
[329275819,1718209858476,-500.0,0.00017808,2]
[329275820,1718209858486,-639.73,0.00017808,2]
[329275821,1718209858497,-500.0,0.00017808,2]
[329275822,1718209858509,-759.14,0.00017808,2]
[329275823,1718209858520,-500.0,0.00017808,2]
[329275824,1718209858531,-500.0,0.00017808,2]
[329275825,1718209858542,-500.0,0.00017808,2]
[329275826,1718209858552,-702.74,0.00017808,2]
[329275827,1718209858564,-2098.87,0.00017808,2]
[329275828,1718209858575,-1082.56,0.00017808,2]
[329275829,1718209858587,-652.32,0.00017808,2]
[329275830,1718209858597,-742.19,0.00017808,2]
[329275831,1718209858611,-500.0,0.00017808,2]
[329275832,1718209858622,-444.2,0.00017808,2]
[329275833,1718209858633,-500.0,0.00017808,2]
[329275834,1718209858644,-500.0,0.00017808,2]
[329275835,1718209858655,-500.0,0.00017808,2]
[329275836,1718209858666,-4130.68,0.00017808,2]
[329275837,1718209858680,-9258.45,0.00017808,2]
[329275838,1718209858694,-1586.88,0.00017808,2]
[329275839,1718209858706,-3156.51,0.00017808,2]
[329275840,1718209858717,-500.0,0.00017808,2]
[329275841,1718209858730,-651.71,0.00017808,2]
[329275842,1718209858741,-7318.37,0.00017808,2]
[329275843,1718209858752,-278.30430788,0.00017808,2]
[329275844,1718209858765,-500.0,0.00017808,2]
[329275845,1718209858777,-500.0,0.00017808,2]
[329275846,1718209858788,-643.06,0.00017808,2]
[329275847,1718209858800,-910.12,0.00017808,2]
[329275848,1718209858810,-500.0,0.00017808,2]
[329275849,1718209858822,-1682.09,0.00017808,2]
[329275850,1718209858833,-500.0,0.00017808,2]
[329275851,1718209858844,-1161.33,0.00017808,2]
[329275852,1718209858859,-500.0,0.00017808,2]
[329275853,1718209858870,-500.0,0.00017808,2]
[329275854,1718209858881,-744.84,0.00017808,2]
[329275855,1718209858893,-3003.03,0.00017808,2]
[329275856,1718209858905,-1020.82,0.00017808,2]
[329275857,1718209858917,-681.3,0.00017937,2]
[329275858,1718209858929,-160.0,0.00017995,2]
[329275859,1718209858939,-2765.44251206,0.00018,2]
[329275860,1718209858950,-476.69963654,0.00018,2]
[329275861,1718209858961,-876.82850055,0.00018,2]
[329275862,1718209858972,-154.9690062,0.00018,2]
[329275863,1718209858984,-1355.61945113,0.00018,2]
[329275864,1718209858995,-1036.68456979,0.00018,2]
[329275865,1718209859005,-204.17791001,0.00018,2]
[329275866,1718209859016,-155.02790502,0.00018,2]
[329275867,1718209859027,-424.11990841,0.0001805,2]
[329275868,1718209859037,-357.077443,0.00018075,2]
[329275869,1718209859047,-357.077443,0.00018075,2]
[329275870,1718209859064,-151.0,0.00018075,2]
[329275871,1718209859075,-173.60951097,0.00018078,2]
[329275872,1718209859085,-164.63552504,0.00018079,2]
[329275873,1718209859096,-500.0,0.00018079,2]
[329275874,1718209859235,-500.0,0.00018079,2]
[329275875,1718209859246,-500.0,0.00018079,4]
[329275876,1718209859261,-500.0,0.00018079,2]
[329275877,1718209859274,-254.65163504,0.00018079,2]
[329275878,1718209859286,-500.0,0.0001808,2]
[329275879,1718209859302,-644.45,0.0001808,2]
[329275880,1718209859314,-500.0,0.00018082,2]
[329275881,1718209859326,-500.0,0.00018082,2]
[329275882,1718209859338,-500.0,0.00018082,2]
[329275883,1718209859350,-639.73,0.00018082,2]
[329275884,1718209859364,-3677.7192,0.00018082,2]
[329275885,1718209859374,-500.0,0.00018082,2]
[329275886,1718209859385,-237.066056,0.00018082,2]
[329275887,1718209859395,-237.066056,0.00018082,2]
[329275888,1718209859406,-759.14,0.00018082,2]
[329275889,1718209859417,-500.0,0.00018082,2]
[329275890,1718209859429,-509.892317,0.00018082,2]
[329275891,1718209859439,-509.892317,0.00018082,2]
[329275892,1718209859452,-151.0,0.00018082,2]
[329275893,1718209859467,-157.383047,0.00018082,2]
[329275894,1718209859478,-157.383047,0.00018082,2]
[329275895,1718209859490,-428.683196,0.00018082,2]
[329275896,1718209859500,-500.0,0.00018082,2]
[329275897,1718209859514,-428.683196,0.00018082,2]
[329275898,1718209859525,-500.0,0.00018082,2]
[329275899,1718209859537,-702.74,0.00018082,2]
[329275900,1718209859548,-2098.87,0.00018082,2]
[329275901,1718209859559,-1082.56,0.00018082,2]
[329275902,1718209859570,-652.32,0.00018082,2]
[329275903,1718209859580,-742.19,0.00018082,2]
[329275904,1718209859591,-500.0,0.00018082,2]
[329275905,1718209859607,-500.0,0.00018082,2]
[329275906,1718209859618,-420.96022031,0.00018082,2]
[329275907,1718209859630,-300.0,0.00018082,2]
[329275908,1718209859641,-302.61382712,0.00018082,2]
[329275909,1718209859653,-300.0,0.00018082,2]
[329275910,1718209859664,-4130.68,0.00018082,2]
[329275911,1718209859678,-9258.45,0.00018082,2]
[329275912,1718209859691,-1586.88,0.00018082,2]
[329275913,1718209859703,-3156.51,0.00018082,2]
[329275914,1718209859715,-500.0,0.00018082,2]
[329275915,1718209859727,-272.982961,0.00018082,2]
[329275916,1718209859740,-651.71,0.00018082,2]
[329275917,1718209859750,-203.447223,0.00018082,2]
[329275918,1718209859762,-7318.37,0.00018082,2]
[329275919,1718209859773,-151.0,0.00018082,2]
[329275920,1718209859787,-203.447223,0.00018082,2]
[329275921,1718209859800,-500.0,0.00018082,2]
[329275922,1718209859813,-151.0,0.00018082,2]
[329275923,1718209859826,-500.0,0.00018082,2]
[329275924,1718209859837,-151.0,0.00018082,2]
[329275925,1718209859848,-643.06,0.00018082,2]
[329275926,1718209859861,-910.12,0.00018082,2]
[329275927,1718209859872,-500.0,0.00018082,2]
[329275928,1718209859883,-171.234053,0.00018082,2]
[329275929,1718209859894,-472.91102,0.00018082,2]
[329275930,1718209859906,-1682.09,0.00018082,2]
[329275931,1718209859917,-500.0,0.00018082,2]
[329275932,1718209859929,-472.91102,0.00018082,2]
[329275933,1718209859943,-1161.33,0.00018082,2]
[329275934,1718209859957,-500.0,0.00018082,2]
[329275935,1718209859970,-500.0,0.00018082,2]
[329275936,1718209859983,-151.0,0.00018082,2]
[329275937,1718209859995,-744.84,0.00018082,2]
[329275938,1718209860008,-3003.03,0.00018082,2]
[329275939,1718209860037,-1020.82,0.00018082,2]
[329275940,1718209860065,-681.3,0.00018144,2]
[329275941,1718209860087,-150.0,0.00018256,2]
[329275942,1718209860128,-933.463318,0.00018271,2]
[329275943,1718209860143,-818.037339,0.00018271,2]
[329275944,1718209860159,-658.565844,0.00018289,2]
[329275945,1718209860183,-681.3,0.0001835,2]
[329275946,1718209860198,-500.0,0.00018353,2]
[329275947,1718209860214,-500.0,0.00018353,2]
[329275948,1718209860228,-151.0,0.00018353,2]
[329275949,1718209860244,-151.0,0.00018353,2]
[329275950,1718209860282,-500.0,0.00018353,4]
[329275951,1718209860296,-500.0,0.00018353,2]
[329275952,1718209860309,-500.0,0.00018354,2]
[329275953,1718209860323,-644.45,0.00018354,2]
[329275954,1718209860336,-151.0,0.00018354,2]
[329275955,1718209860348,-295.857796,0.00018354,2]
[329275956,1718209860374,-295.857796,0.00018354,2]
[329275957,1718209860388,-500.0,0.00018356,2]
[329275958,1718209860412,-189.26433692,0.00018356,2]
[329275959,1718209860428,-500.0,0.00018356,2]
[329275960,1718209860442,-639.73,0.00018356,2]
[329275961,1718209860454,-500.0,0.00018356,2]
[329275962,1718209860471,-759.14,0.00018356,2]
[329275963,1718209860487,-500.0,0.00018356,2]
[329275964,1718209860506,-500.0,0.00018356,2]
[329275965,1718209860520,-500.0,0.00018356,2]
[329275966,1718209860533,-702.74,0.00018356,2]
[329275967,1718209860551,-2098.87,0.00018356,2]
[329275968,1718209860566,-1082.56,0.00018356,2]
[329275969,1718209860591,-652.32,0.00018356,2]
[329275970,1718209860629,-742.19,0.00018356,2]
[329275971,1718209860640,-357.077443,0.00018356,2]
[329275972,1718209860658,-357.077443,0.00018356,2]
[329275973,1718209860677,-151.0,0.00018356,2]
[329275974,1718209860720,-500.0,0.00018356,2]
[329275975,1718209860735,-500.0,0.00018356,2]
[329275976,1718209860758,-4130.68,0.00018356,2]
[329275977,1718209860782,-9258.45,0.00018356,2]
[329275978,1718209860799,-1586.88,0.00018356,2]
[329275979,1718209860814,-3156.51,0.00018356,2]
[329275980,1718209860838,-500.0,0.00018356,2]
[329275981,1718209860854,-651.71,0.00018356,2]
[329275982,1718209860870,-7318.37,0.00018356,2]
[329275983,1718209860896,-500.0,0.00018356,2]
[329275984,1718209860922,-500.0,0.00018356,2]
[329275985,1718209860941,-643.06,0.00018356,2]
[329275986,1718209860957,-910.12,0.00018356,2]
[329275987,1718209860971,-500.0,0.00018356,2]
[329275988,1718209860983,-1682.09,0.00018356,2]
[329275989,1718209860993,-500.0,0.00018356,2]
[329275990,1718209861007,-1161.33,0.00018356,2]
[329275991,1718209861018,-500.0,0.00018356,2]
[329275992,1718209861029,-500.0,0.00018356,2]
[329275993,1718209861040,-151.0,0.00018356,2]
[329275994,1718209861051,-744.84,0.00018356,2]
[329275995,1718209861065,-3003.03,0.00018356,2]
[329275996,1718209861075,-1020.82,0.00018356,2]
[329275997,1718209861089,-155.0,0.0001843,2]
[329275998,1718209861112,-158.063564,0.00018439,2]
[329275999,1718209861137,-184.087169,0.00018439,2]
[329276000,1718209861152,-158.06356,0.00018439,2]
[329276001,1718209861165,-184.087165,0.00018439,2]
[329276002,1718209861178,-158.06356,0.00018439,2]
[329276003,1718209861191,-207.220624,0.00018439,2]
[329276004,1718209861203,-472.91102,0.00018439,2]
[329276005,1718209861215,-472.91102,0.00018439,2]
[329276006,1718209861226,-933.463318,0.000185,2]
[329276007,1718209861236,-818.037339,0.000185,2]
[329276008,1718209861247,-606.91207968,0.000185,2]
[329276009,1718209861257,-151.0,0.000185,2]
[329276010,1718209861268,-498.6582771,0.00018511,2]
[329276011,1718209861279,-424.11990841,0.0001853,2]
[329276012,1718209861290,-1750.0,0.00018531,2]
[329276013,1718209861300,-499.0,0.00018531,2]
[329276014,1718209861311,-300.0,0.00018532,2]
[329276015,1718209861323,-300.0,0.00018532,2]
[329276016,1718209861334,-203.447223,0.00018532,2]
[329276017,1718209861346,-151.0,0.00018532,2]
[329276018,1718209861356,-203.447223,0.00018532,2]
[329276019,1718209861369,-151.0,0.00018532,2]
[329276020,1718209861381,-320.0,0.00018543,2]
[329276021,1718209861391,-681.3,0.00018556,2]
[329276022,1718209861402,-151.0,0.00018556,2]
[329276023,1718209861413,-166.666666,0.00018575,2]
[329276024,1718209861423,-153.0,0.0001862,2]
[329276025,1718209861433,-153.0,0.0001862,2]
[329276026,1718209861444,-153.0,0.0001862,2]
[329276027,1718209861456,-153.0,0.0001862,2]
[329276028,1718209861468,-9584.16374657,0.00018627,2]
[329276029,1718209861479,-500.0,0.00018627,2]
[329276030,1718209861492,-500.0,0.00018627,2]
[329276031,1718209861504,-237.066056,0.00018627,2]
[329276032,1718209861517,-237.066056,0.00018627,2]
[329276033,1718209861529,-509.892317,0.00018627,2]
[329276034,1718209861541,-509.892317,0.00018627,2]
[329276035,1718209861555,-151.0,0.00018627,2]
[329276036,1718209861581,-500.0,0.00018627,4]
[329276037,1718209861600,-157.383047,0.00018627,2]
[329276038,1718209861616,-157.383047,0.00018627,2]
[329276039,1718209861627,-428.683196,0.00018627,2]
[329276040,1718209861645,-428.683196,0.00018627,2]
[329276041,1718209861657,-500.0,0.00018627,2]
[329276042,1718209861675,-255.147834,0.00018628,2]
[329276043,1718209861692,-255.147834,0.00018628,2]
[329276044,1718209861709,-500.0,0.00018628,2]
[329276045,1718209861721,-644.45,0.00018628,2]
[329276046,1718209861739,-151.0,0.00018628,2]
[329276047,1718209861758,-500.0,0.0001863,2]
[329276048,1718209861770,-500.0,0.0001863,2]
[329276049,1718209861782,-639.73,0.0001863,2]
[329276050,1718209861794,-500.0,0.0001863,2]
[329276051,1718209861806,-759.14,0.0001863,2]
[329276052,1718209861817,-302.97965784,0.0001863,2]
[329276053,1718209861829,-500.0,0.0001863,2]
[329276054,1718209861846,-500.0,0.0001863,2]
[329276055,1718209861862,-702.74,0.0001863,2]
[329276056,1718209861877,-2098.87,0.0001863,2]
[329276057,1718209861893,-1082.56,0.0001863,2]
[329276058,1718209861904,-652.32,0.0001863,2]
[329276059,1718209861916,-742.19,0.0001863,2]
[329276060,1718209861934,-500.0,0.0001863,2]
[329276061,1718209861945,-500.0,0.0001863,2]
[329276062,1718209861956,-4130.68,0.0001863,2]
[329276063,1718209861966,-6268.96384875,0.0001863,2]
[329276069,1718210095568,154.95351395,9.999e-05,2]
[329276071,1718210173251,19315.92802164,9.999e-05,2]
[329276072,1718210189266,6803.84515685,9.999e-05,2]
[329276074,1718210448085,-272.851688,0.00015643,2]
[329276075,1718210448130,-673.98365911,0.00016434,2]
[329276076,1718210448172,-300.0,0.00016435,2]
[329276077,1718210448215,-300.0,0.00016435,2]
[329276078,1718210448255,-155.07748915,0.00016436,2]
[329276079,1718210448299,-9584.16374657,0.00016436,2]
[329276080,1718210448340,-173.60951097,0.00016436,2]
[329276081,1718210448381,-164.63552504,0.00016436,2]
[329276082,1718210448424,-3207.53011219,0.00016437,2]
[329276083,1718210448466,-500.0,0.00016438,2]